[Event "European Rapid Championship 2021"]
[Site "Katowice"]
[Date "2021.12.18"]
[Round "6.24"]
[White "Lukasiewicz, Krzysztof"]
[Black "Wieczorek, Oskar"]
[Result "0-1"]
[ECO "A45"]
[WhiteElo "2251"]
[BlackElo "2367"]
[Annotator "NA"]
[PlyCount "108"]
[EventDate "2021.12.18"]
[EventType "swiss"]
[EventCountry "POL"]
[SourceTitle "playchess.com"]
[Source "ChessBase"]
[SourceQuality "1"]
[TimeControl "900+10"]

1. d4 {[%emt 0:00:01]} Nf6 {[%emt 0:00:01]} 2. Bf4 {[%emt 0:00:02]} g6 {
[%emt 0:00:40]} 3. Nc3 {[%emt 0:00:02]} c5 {[%emt 0:00:11]} 4. e3 {[%emt 0:01:
19]} Bg7 {[%emt 0:00:10]} 5. h4 {[%emt 0:00:02]} cxd4 {[%emt 0:04:49]} 6. exd4
{[%emt 0:00:17]} Qa5 {[%emt 0:00:06]} 7. Qd2 {[%emt 0:00:16]} d6 {[%emt 0:00:
11]} 8. Bc4 {[%emt 0:00:37]} Bf5 {[%emt 0:04:34]} 9. Bb3 {[%emt 0:00:18]} O-O {
[%emt 0:00:42]} 10. Nge2 {[%emt 0:02:37]} e5 {[%emt 0:01:11]} 11. Bh6 {[%emt 0:
01:17]} Bxh6 {[%emt 0:01:24]} 12. Qxh6 {[%emt 0:00:01]} exd4 {[%emt 0:00:10]}
13. Nxd4 {[%emt 0:00:02]} Qe5+ {[%emt 0:00:32]} 14. Nde2 {[%emt 0:00:11]} Nc6 {
[%emt 0:00:22]} 15. Qf4 {[%emt 0:03:56]} Rfe8 {[%emt 0:01:03]} 16. Qxe5 dxe5 {
[%emt 0:00:05]} 17. O-O-O {[%emt 0:00:35]} Ng4 {[%emt 0:00:45]} 18. Rhf1 {
[%emt 0:00:05]} Rad8 {[%emt 0:00:01]} 19. Nd5 {[%emt 0:00:39]} Na5 {[%emt 0:00:
41]} 20. Ba4 {[%emt 0:00:22]} Rf8 {[%emt 0:00:06]} 21. f3 {[%emt 0:01:09]} Rxd5
{[%emt 0:00:01]} 22. Rxd5 {[%emt 0:00:02]} Ne3 {[%emt 0:00:01]} 23. Rxa5 {
[%emt 0:01:00]} Nxf1 {[%emt 0:00:11]} 24. Rxe5 {[%emt 0:00:02]} Rd8 {[%emt 0:
00:13]} 25. g4 {[%emt 0:01:20]} Bc8 {[%emt 0:00:03]} 26. Nc3 {[%emt 0:01:38]}
Kf8 {[%emt 0:00:47]} 27. Re1 {[%emt 0:00:53]} Nh2 {[%emt 0:00:01]} 28. Re3 {
[%emt 0:00:21]} f5 {[%emt 0:00:01]} 29. gxf5 {[%emt 0:00:15]} Bxf5 {[%emt 0:00:
05]} 30. Bb5 {[%emt 0:00:03]} Rd4 {[%emt 0:00:09]} 31. Ne4 {[%emt 0:00:12]}
Nxf3 {[%emt 0:00:06]} 32. Rxf3 {[%emt 0:00:18]} Rxe4 {[%emt 0:00:01]} 33. Bd3 {
[%emt 0:00:16]} Re5 {[%emt 0:00:00]} 34. Bxf5 {[%emt 0:00:27]} gxf5 {[%emt 0:
00:01]} 35. Kd2 {[%emt 0:00:01]} Kf7 {[%emt 0:00:01]} 36. Rc3 {[%emt 0:00:06]}
Re7 {[%emt 0:00:06]} 37. Re3 {[%emt 0:00:15]} Rc7 {[%emt 0:00:30]} 38. b3 {
[%emt 0:00:01]} Kf6 {[%emt 0:00:02]} 39. c4 {[%emt 0:00:12]} Rg7 {[%emt 0:00:
08]} 40. Rd3 {[%emt 0:00:22]} Ke5 {[%emt 0:00:08]} 41. Rd8 {[%emt 0:00:10]} Ke4
{[%emt 0:00:19]} 42. Rf8 {[%emt 0:00:13]} Rg2+ {[%emt 0:00:03]} 43. Kc3 {
[%emt 0:00:01]} f4 {[%emt 0:00:17]} 44. Rf7 {[%emt 0:00:03]} f3 {[%emt 0:00:04]
} 45. Re7+ {[%emt 0:00:19]} Kf4 {[%emt 0:00:03]} 46. Rxb7 {[%emt 0:00:01]} f2 {
[%emt 0:00:31]} 47. Rf7+ {[%emt 0:00:21]} Ke3 {[%emt 0:00:01]} 48. Re7+ {
[%emt 0:00:08]} Kf3 {[%emt 0:00:01]} 49. Rf7+ {[%emt 0:00:01]} Ke2 {[%emt 0:00:
03]} 50. Re7+ {[%emt 0:00:06]} Kd1 {[%emt 0:00:13]} 51. Rd7+ {[%emt 0:00:31]}
Ke2 {[%emt 0:00:02]} 52. Re7+ {[%emt 0:00:01]} Kf1 {[%emt 0:00:00]} 53. c5 {
[%emt 0:00:09]} Rg3+ {[%emt 0:00:22]} 54. Kd2 {[%emt 0:00:13]} Kg2 {[%emt 0:00:
47]} 0-1

[Event "European Rapid Championship 2021"]
[Site "Katowice"]
[Date "2021.12.18"]
[Round "6.25"]
[White "Baum, Jonasz"]
[Black "Kukula, Pawel"]
[Result "0-1"]
[ECO "E00"]
[WhiteElo "2343"]
[BlackElo "2088"]
[Annotator "NA"]
[PlyCount "74"]
[EventDate "2021.12.18"]
[EventType "swiss"]
[EventCountry "POL"]
[SourceTitle "playchess.com"]
[Source "ChessBase"]
[SourceQuality "1"]
[TimeControl "900+10"]

1. d4 {[%emt 0:00:01]} Nf6 {[%emt 0:00:02]} 2. c4 {[%emt 0:00:01]} e6 {[%emt 0:
00:08]} 3. Nc3 {[%emt 0:00:10]} c5 4. d5 {[%emt 0:00:21]} exd5 {[%emt 0:00:11]}
5. cxd5 {[%emt 0:00:01]} Bd6 {[%emt 0:00:04]} 6. Nf3 {[%emt 0:02:19]} Bc7 {
[%emt 0:00:02]} 7. d6 {[%emt 0:01:54]} Ba5 8. Bg5 {[%emt 0:01:32]} h6 {[%emt 0:
00:18]} 9. Bh4 {[%emt 0:00:00]} g5 {[%emt 0:02:13]} 10. Bg3 Nc6 11. e3 {
[%emt 0:00:54]} Ne4 {[%emt 0:01:19]} 12. Bc4 {[%emt 0:02:43]} Nxc3 {[%emt 0:00:
41]} 13. bxc3 {[%emt 0:00:01]} Bxc3+ {[%emt 0:00:27]} 14. Ke2 {[%emt 0:00:34]}
Bg7 {[%emt 0:02:32]} 15. Qd3 {[%emt 0:00:53]} O-O {[%emt 0:00:48]} 16. h4 Nb4 {
[%emt 0:00:50]} 17. Qb1 {[%emt 0:01:36]} g4 {[%emt 0:03:17]} 18. Ng5 {[%emt 0:
01:50]} hxg5 {[%emt 0:00:19]} 19. hxg5 {[%emt 0:00:03]} Re8 {[%emt 0:00:01]}
20. Qh7+ {[%emt 0:01:29]} Kf8 {[%emt 0:00:01]} 21. Qf5 {[%emt 0:00:40]} Re6 {
[%emt 0:00:10]} 22. Bxe6 {[%emt 0:01:32]} dxe6 {[%emt 0:00:08]} 23. Qxc5 {
[%emt 0:00:01]} Nd5 {[%emt 0:01:39]} 24. Rac1 {[%emt 0:00:24]} Bd7 {[%emt 0:00:
05]} 25. Qc2 {[%emt 0:00:10]} Bb5+ {[%emt 0:00:13]} 26. Kd1 {[%emt 0:00:10]}
Nc3+ {[%emt 0:00:13]} 27. Qxc3 {[%emt 0:00:06]} Bxc3 {[%emt 0:00:02]} 28. Rxc3
{[%emt 0:00:01]} Qa5 {[%emt 0:02:43]} 29. Rh8+ {[%emt 0:00:03]} Kg7 {[%emt 0:
00:02]} 30. Be5+ {[%emt 0:00:02]} Kg6 {[%emt 0:00:14]} 31. Rxa8 {[%emt 0:00:35]
} Ba4+ {[%emt 0:00:01]} 32. Kd2 {[%emt 0:00:05]} Qxe5 {[%emt 0:00:01]} 33. Rd8
{[%emt 0:00:17]} Qd5+ {[%emt 0:00:05]} 34. Rd3 {[%emt 0:00:11]} Qxa2+ {[%emt 0:
00:02]} 35. Ke1 {[%emt 0:00:09]} Bb5 {[%emt 0:00:00]} 36. Rd2 {[%emt 0:00:08]}
Qa1+ {[%emt 0:00:02]} 37. Rd1 {[%emt 0:00:01]} Qa5+ {[%emt 0:00:01]} 0-1

[Event "European Rapid Championship 2021"]
[Site "Katowice"]
[Date "2021.12.18"]
[Round "6.25"]
[White "Malczyk, Radoslaw"]
[Black "Sanz Wawer, Daniel"]
[Result "0-1"]
[ECO "A45"]
[WhiteElo "1926"]
[BlackElo "2371"]
[Annotator "NA"]
[PlyCount "104"]
[EventDate "2021.12.18"]
[EventType "swiss"]
[EventCountry "POL"]
[SourceTitle "playchess.com"]
[Source "ChessBase"]
[SourceQuality "1"]
[TimeControl "900+10"]

1. d4 {[%emt 0:00:03]} Nf6 {[%emt 0:00:01]} 2. Bg5 {[%emt 0:00:03]} d5 {
[%emt 0:00:01]} 3. Bxf6 {[%emt 0:00:05]} exf6 {[%emt 0:00:02]} 4. e3 {[%emt 0:
00:02]} Bd6 {[%emt 0:00:02]} 5. c4 {[%emt 0:00:05]} dxc4 {[%emt 0:00:07]} 6.
Bxc4 {[%emt 0:00:02]} O-O {[%emt 0:00:04]} 7. Ne2 {[%emt 0:00:05]} f5 {[%emt 0:
00:35]} 8. O-O {[%emt 0:00:14]} b6 {[%emt 0:00:01]} 9. Ng3 {[%emt 0:01:49]} g6
{[%emt 0:00:40]} 10. Qf3 {[%emt 0:00:10]} c6 {[%emt 0:00:01]} 11. Nc3 {[%emt 0:
00:05]} Bb7 {[%emt 0:00:20]} 12. Rad1 {[%emt 0:00:38]} Qc7 {[%emt 0:03:36]} 13.
e4 {[%emt 0:02:33]} b5 {[%emt 0:00:22]} 14. Bd3 {[%emt 0:00:35]} b4 {[%emt 0:
00:25]} 15. Nce2 {[%emt 0:00:14]} c5 {[%emt 0:01:11]} 16. dxc5 {[%emt 0:03:05]}
Bxc5 {[%emt 0:00:34]} 17. Rc1 {[%emt 0:00:01]} Nd7 {[%emt 0:00:11]} 18. Qf4 {
[%emt 0:00:57]} Qxf4 {[%emt 0:00:56]} 19. Nxf4 {[%emt 0:00:02]} Bd6 {[%emt 0:
00:01]} 20. Nd5 {[%emt 0:00:10]} Bxd5 {[%emt 0:03:22]} 21. exd5 {[%emt 0:00:05]
} Nb6 {[%emt 0:00:02]} 22. Bb5 {[%emt 0:00:47]} Bxg3 {[%emt 0:00:21]} 23. hxg3
{[%emt 0:00:03]} Nxd5 {[%emt 0:00:17]} 24. Bc6 {[%emt 0:00:19]} Rad8 {[%emt 0:
00:02]} 25. a3 {[%emt 0:01:13]} bxa3 {[%emt 0:00:20]} 26. bxa3 {[%emt 0:00:01]}
Nf6 {[%emt 0:00:25]} 27. Bf3 {[%emt 0:01:00]} Rd7 {[%emt 0:01:18]} 28. Rc6 {
[%emt 0:00:45]} Kg7 {[%emt 0:00:21]} 29. Rfc1 {[%emt 0:00:23]} Rb8 {[%emt 0:01:
08]} 30. Rc7 {[%emt 0:00:11]} Rb3 {[%emt 0:00:16]} 31. Rxd7 {[%emt 0:00:44]}
Nxd7 {[%emt 0:00:01]} 32. Rc7 {[%emt 0:00:12]} Ne5 {[%emt 0:00:01]} 33. Rxa7 {
[%emt 0:00:19]} Nxf3+ {[%emt 0:01:09]} 34. gxf3 {[%emt 0:00:02]} Rxf3 {[%emt 0:
00:02]} 35. a4 {[%emt 0:00:02]} Ra3 {[%emt 0:00:03]} 36. a5 {[%emt 0:00:12]}
Ra4 {[%emt 0:00:25]} 37. Kg2 {[%emt 0:00:23]} f4 {[%emt 0:00:03]} 38. Ra8 {
[%emt 0:00:17]} fxg3 {[%emt 0:00:03]} 39. fxg3 {[%emt 0:00:01]} h5 {[%emt 0:00:
37]} 40. a6 {[%emt 0:00:02]} Kf6 {[%emt 0:00:23]} 41. Ra7 {[%emt 0:00:38]} Ke6
{[%emt 0:00:34]} 42. Kf3 {[%emt 0:00:10]} f6 {[%emt 0:00:08]} 43. Ra8 {[%emt 0:
00:14]} Kf5 {[%emt 0:00:13]} 44. a7 {[%emt 0:00:02]} Ra3+ {[%emt 0:00:01]} 45.
Kf2 {[%emt 0:00:01]} g5 {[%emt 0:00:19]} 46. Rh8 {[%emt 0:01:46]} Rxa7 {
[%emt 0:00:02]} 47. Rxh5 {[%emt 0:00:02]} Kg4 {[%emt 0:00:05]} 48. Rh6 {
[%emt 0:00:01]} Ra2+ {[%emt 0:00:12]} 49. Ke3 {[%emt 0:00:32]} f5 {[%emt 0:00:
05]} 50. Rg6 {[%emt 0:00:08]} Ra3+ {[%emt 0:00:02]} 51. Kf2 {[%emt 0:00:01]}
Rf3+ {[%emt 0:00:02]} 52. Ke2 {[%emt 0:00:03]} Rxg3 {[%emt 0:00:05]} 0-1

[Event "European Rapid Championship 2021"]
[Site "Katowice"]
[Date "2021.12.18"]
[Round "6.26"]
[White "Bjerre, Jonas Buhl"]
[Black "Karolczuk, Iwo"]
[Result "1/2-1/2"]
[ECO "E91"]
[WhiteElo "2330"]
[BlackElo "2007"]
[Annotator "NA"]
[PlyCount "74"]
[EventDate "2021.12.18"]
[EventType "swiss"]
[EventCountry "POL"]
[SourceTitle "playchess.com"]
[Source "ChessBase"]
[SourceQuality "1"]
[TimeControl "900+10"]

1. d4 {[%emt 0:00:01]} Nf6 {[%emt 0:00:02]} 2. c4 {[%emt 0:00:02]} g6 {[%emt 0:
00:02]} 3. Nc3 {[%emt 0:00:02]} Bg7 {[%emt 0:00:02]} 4. e4 {[%emt 0:00:02]} O-O
{[%emt 0:00:03]} 5. Nf3 {[%emt 0:00:01]} d6 {[%emt 0:00:03]} 6. Be2 {[%emt 0:
00:01]} c5 {[%emt 0:00:15]} 7. O-O {[%emt 0:00:06]} Nc6 {[%emt 0:00:02]} 8. d5
{[%emt 0:00:03]} Na5 {[%emt 0:00:02]} 9. Bf4 {[%emt 0:00:50]} Nh5 {[%emt 0:00:
27]} 10. Bg5 {[%emt 0:00:02]} h6 {[%emt 0:00:14]} 11. Be3 {[%emt 0:00:02]} e5 {
[%emt 0:00:22]} 12. dxe6 {[%emt 0:00:29]} Bxe6 {[%emt 0:00:05]} 13. Nd5 {
[%emt 0:00:56]} Bxd5 {[%emt 0:01:29]} 14. cxd5 {[%emt 0:01:52]} Bxb2 {[%emt 0:
00:17]} 15. Rb1 {[%emt 0:00:00]} Bg7 {[%emt 0:00:14]} 16. e5 {[%emt 0:00:08]}
dxe5 {[%emt 0:02:57]} 17. Bxc5 {[%emt 0:00:01]} e4 {[%emt 0:00:51]} 18. Nd4 {
[%emt 0:01:47]} Re8 {[%emt 0:01:41]} 19. Bxh5 {[%emt 0:00:21]} Qxd5 {[%emt 0:
00:40]} 20. Rb5 {[%emt 0:01:12]} Qxh5 {[%emt 0:00:18]} 21. Qxh5 {[%emt 0:02:09]
} gxh5 {[%emt 0:00:02]} 22. Nf5 {[%emt 0:00:01]} b6 {[%emt 0:00:43]} 23. Be3 {
[%emt 0:00:47]} Re6 {[%emt 0:00:18]} 24. Rc1 {[%emt 0:00:40]} Rd8 {[%emt 0:01:
50]} 25. h4 {[%emt 0:01:50]} Bf8 {[%emt 0:01:11]} 26. Rc7 {[%emt 0:00:23]} Nc6
{[%emt 0:00:26]} 27. a4 {[%emt 0:00:42]} Ne5 {[%emt 0:02:03]} 28. Rxa7 {
[%emt 0:00:38]} Ng4 {[%emt 0:01:36]} 29. g3 {[%emt 0:00:01]} Rd1+ {[%emt 0:00:
35]} 30. Kg2 {[%emt 0:00:01]} Ne5 {[%emt 0:00:07]} 31. Rc7 {[%emt 0:01:44]} Nd3
{[%emt 0:00:33]} 32. Nd4 {[%emt 0:01:08]} Ne1+ {[%emt 0:00:05]} 33. Kh3 {
[%emt 0:00:07]} Nf3 {[%emt 0:00:23]} 34. Nxe6 {[%emt 0:00:58]} Rh1+ {[%emt 0:
00:05]} 35. Kg2 {[%emt 0:00:00]} Rg1+ {[%emt 0:00:12]} 36. Kh3 {[%emt 0:00:01]}
Rh1+ {[%emt 0:00:02]} 37. Kg2 {[%emt 0:00:01]} Rg1+ {[%emt 0:00:11]} 1/2-1/2

[Event "European Rapid Championship 2021"]
[Site "Katowice"]
[Date "2021.12.18"]
[Round "6.26"]
[White "Lukasiewicz, Aleksander"]
[Black "Semjonovs, Ilja"]
[Result "0-1"]
[ECO "B90"]
[WhiteElo "1887"]
[BlackElo "2383"]
[Annotator "NA"]
[PlyCount "110"]
[EventDate "2021.12.18"]
[EventType "swiss"]
[EventCountry "POL"]
[SourceTitle "playchess.com"]
[Source "ChessBase"]
[SourceQuality "1"]
[TimeControl "900+10"]

1. e4 {[%emt 0:00:01]} c5 {[%emt 0:00:01]} 2. Nf3 {[%emt 0:00:01]} d6 {[%emt 0:
00:01]} 3. d4 {[%emt 0:00:01]} cxd4 {[%emt 0:00:01]} 4. Nxd4 {[%emt 0:00:01]}
Nf6 {[%emt 0:00:01]} 5. Nc3 {[%emt 0:00:00]} a6 {[%emt 0:00:01]} 6. Bc4 {
[%emt 0:00:01]} e6 {[%emt 0:00:06]} 7. Bb3 {[%emt 0:00:01]} Be7 {[%emt 0:00:17]
} 8. O-O {[%emt 0:00:03]} Nc6 {[%emt 0:00:11]} 9. Be3 {[%emt 0:00:14]} O-O {
[%emt 0:00:21]} 10. f4 {[%emt 0:00:01]} Qc7 {[%emt 0:01:10]} 11. f5 {[%emt 0:
01:02]} Nxd4 {[%emt 0:07:18]} 12. Bxd4 {[%emt 0:00:01]} b5 {[%emt 0:00:12]} 13.
Qf3 {[%emt 0:01:31]} b4 {[%emt 0:01:24]} 14. Na4 {[%emt 0:00:01]} Rb8 {[%emt 0:
01:33]} 15. Rae1 {[%emt 0:00:56]} Rb5 {[%emt 0:01:10]} 16. c4 {[%emt 0:02:57]}
bxc3 {[%emt 0:00:10]} 17. Nxc3 {[%emt 0:00:01]} Rb4 {[%emt 0:00:03]} 18. Bf2 {
[%emt 0:02:00]} Re8 {[%emt 0:01:48]} 19. Bg3 {[%emt 0:02:27]} exf5 {[%emt 0:00:
44]} 20. exf5 {[%emt 0:00:01]} Bb7 {[%emt 0:00:05]} 21. Qd3 {[%emt 0:01:12]}
Qc5+ {[%emt 0:01:21]} 22. Kh1 {[%emt 0:00:09]} Rd4 {[%emt 0:00:07]} 23. Qc2 {
[%emt 0:01:01]} Qc6 {[%emt 0:00:06]} 24. Re2 {[%emt 0:01:02]} Bf8 {[%emt 0:00:
21]} 25. Rxe8 {[%emt 0:00:51]} Nxe8 {[%emt 0:00:01]} 26. Qf2 {[%emt 0:00:20]}
Nf6 {[%emt 0:00:16]} 27. Rg1 {[%emt 0:00:11]} Rb4 {[%emt 0:00:16]} 28. Qd2 {
[%emt 0:01:23]} a5 {[%emt 0:00:12]} 29. Qd1 {[%emt 0:00:54]} h5 {[%emt 0:00:16]
} 30. a3 {[%emt 0:00:28]} Rg4 {[%emt 0:00:02]} 31. Ba4 {[%emt 0:00:09]} Qc5 {
[%emt 0:00:05]} 32. Qe2 {[%emt 0:00:21]} h4 {[%emt 0:00:11]} 33. Bf2 {[%emt 0:
00:01]} Qxf5 {[%emt 0:00:02]} 34. Bc2 {[%emt 0:00:20]} Qd7 {[%emt 0:00:39]} 35.
Qd3 {[%emt 0:00:32]} Qc6 {[%emt 0:00:10]} 36. Qh3 {[%emt 0:00:26]} Bc8 {
[%emt 0:00:04]} 37. Qd3 {[%emt 0:00:16]} Bb7 {[%emt 0:00:21]} 38. Qh3 {[%emt 0:
00:02]} Bc8 {[%emt 0:00:02]} 39. Qd3 {[%emt 0:00:01]} g6 {[%emt 0:00:19]} 40.
h3 {[%emt 0:00:16]} Rf4 {[%emt 0:00:10]} 41. Be3 {[%emt 0:00:10]} Rf3 {[%emt 0:
00:11]} 42. Kh2 {[%emt 0:00:31]} Rg3 {[%emt 0:00:08]} 43. Qe2 {[%emt 0:00:08]}
Qd7 {[%emt 0:00:05]} 44. Qf1 {[%emt 0:00:11]} Rxe3 {[%emt 0:00:03]} 45. Nd1 {
[%emt 0:00:10]} Rg3 {[%emt 0:00:03]} 46. Nf2 {[%emt 0:00:06]} Kg7 {[%emt 0:00:
04]} 47. Ne4 {[%emt 0:00:12]} Nxe4 {[%emt 0:00:02]} 48. Bxe4 {[%emt 0:00:01]}
d5 {[%emt 0:00:05]} 49. Bf3 {[%emt 0:00:04]} Bd6 {[%emt 0:00:07]} 50. Kh1 {
[%emt 0:00:17]} d4 {[%emt 0:00:13]} 51. Bg4 {[%emt 0:00:07]} Qc7 {[%emt 0:00:
19]} 52. Bxc8 {[%emt 0:00:05]} Qxc8 {[%emt 0:00:01]} 53. Qf2 {[%emt 0:00:16]}
Rxh3+ {[%emt 0:00:15]} 54. gxh3 {[%emt 0:00:01]} Qxh3+ {[%emt 0:00:01]} 55. Qh2
{[%emt 0:00:02]} Qxh2# {[%emt 0:00:01]} 0-1

[Event "European Rapid Championship 2021"]
[Site "Katowice"]
[Date "2021.12.18"]
[Round "6.27"]
[White "Czernek, Tymon"]
[Black "Szpar, Milosz"]
[Result "0-1"]
[ECO "B34"]
[WhiteElo "2197"]
[BlackElo "2315"]
[Annotator "NA"]
[PlyCount "76"]
[EventDate "2021.12.18"]
[EventType "swiss"]
[EventCountry "POL"]
[SourceTitle "playchess.com"]
[Source "ChessBase"]
[SourceQuality "1"]
[TimeControl "900+10"]

1. e4 {[%emt 0:00:01]} c5 {[%emt 0:00:11]} 2. Nf3 {[%emt 0:00:02]} Nc6 {
[%emt 0:00:05]} 3. d4 {[%emt 0:00:02]} cxd4 {[%emt 0:00:05]} 4. Nxd4 {[%emt 0:
00:01]} g6 {[%emt 0:00:07]} 5. Nc3 {[%emt 0:00:01]} Bg7 {[%emt 0:00:03]} 6. Be3
{[%emt 0:00:01]} Nf6 {[%emt 0:00:03]} 7. Be2 {[%emt 0:00:50]} O-O {[%emt 0:00:
07]} 8. Nxc6 {[%emt 0:00:12]} bxc6 {[%emt 0:00:09]} 9. e5 {[%emt 0:00:14]} Ne8
{[%emt 0:00:47]} 10. f4 {[%emt 0:00:02]} f6 {[%emt 0:00:04]} 11. Bc4+ {[%emt 0:
00:41]} Kh8 {[%emt 0:00:12]} 12. O-O {[%emt 0:00:04]} Qa5 {[%emt 0:01:26]} 13.
Ne4 {[%emt 0:01:05]} Rb8 {[%emt 0:01:16]} 14. Bc5 {[%emt 0:01:47]} f5 {[%emt 0:
01:08]} 15. b4 {[%emt 0:00:01]} Rxb4 {[%emt 0:00:40]} 16. Bxb4 {[%emt 0:00:02]}
Qxb4 {[%emt 0:00:02]} 17. Nd2 {[%emt 0:00:01]} d6 {[%emt 0:00:35]} 18. Rb1 {
[%emt 0:01:49]} Qc5+ {[%emt 0:00:36]} 19. Kh1 {[%emt 0:00:01]} dxe5 {[%emt 0:
00:13]} 20. fxe5 {[%emt 0:00:05]} Bxe5 {[%emt 0:01:53]} 21. Qe2 {[%emt 0:00:15]
} Bc7 {[%emt 0:01:41]} 22. Rfe1 {[%emt 0:01:26]} e5 {[%emt 0:00:26]} 23. Nb3 {
[%emt 0:03:19]} Qe7 {[%emt 0:00:24]} 24. Qf2 {[%emt 0:00:36]} e4 {[%emt 0:01:
05]} 25. Nd4 {[%emt 0:00:57]} Nf6 {[%emt 0:00:30]} 26. Qh4 {[%emt 0:01:46]} Qc5
{[%emt 0:01:33]} 27. Ne6 {[%emt 0:00:10]} Bxe6 {[%emt 0:00:18]} 28. Bxe6 {
[%emt 0:00:02]} Ng4 {[%emt 0:00:18]} 29. Re2 {[%emt 0:00:45]} Bb6 {[%emt 0:01:
41]} 30. Rf1 {[%emt 0:00:46]} Qe5 {[%emt 0:00:53]} 31. Qxg4 {[%emt 0:00:19]}
fxg4 {[%emt 0:00:11]} 32. Rxf8+ {[%emt 0:00:16]} Kg7 {[%emt 0:00:01]} 33. Rf7+
{[%emt 0:00:02]} Kh6 {[%emt 0:00:08]} 34. Rf1 {[%emt 0:00:51]} Qxe6 {[%emt 0:
00:06]} 35. g3 {[%emt 0:00:08]} e3 {[%emt 0:00:09]} 36. Kg1 {[%emt 0:00:16]}
Qxa2 {[%emt 0:00:17]} 37. Rf4 {[%emt 0:00:06]} Qb1+ {[%emt 0:00:06]} 38. Rf1 {
[%emt 0:00:03]} Qb5 {[%emt 0:00:05]} 0-1